lending/lending_fUSD_20240128
["ID","MTS","AMOUNT","RATE_DAILY","PERIOD"]
[312913287,1706459447411,-2660.06749688,0.0003035,2]
[312913288,1706459447420,-398.31,0.00030421,2]
[312913289,1706459447429,-377.25,0.00030424,2]
[312913290,1706459447438,-1279.37,0.00030425,2]
[312913291,1706459447447,-838.0,0.00030491,2]
[312913292,1706459447456,-948.0,0.00030491,2]
[312913293,1706459447464,-1859.0,0.00030491,2]
[312913294,1706459447473,-1032.0,0.00030491,2]
[312913295,1706459447485,-153.21533483,0.00030552,2]
[312913296,1706459447494,-265.222,0.00030616,2]
[312913297,1706459447502,-1939.0,0.00030616,2]
[312913298,1706459447512,-320.0,0.00030616,2]
[312913299,1706459447520,-861.0,0.00030616,2]
[312913300,1706459447530,-8120.0,0.00030639,2]
[312913301,1706459447539,-7374.0,0.00030639,2]
[312913302,1706459447548,-19753.0,0.00030639,2]
[312913303,1706459447557,-2279.0,0.00030639,2]
[312913304,1706459447566,-2912.0,0.00030639,2]
[312913305,1706459447575,-150.0,0.00030777,2]
[312913306,1706459447584,-1279.37,0.00030858,2]
[312913307,1706459447593,-405.32951929,0.00031,7]
[312913308,1706459447602,-10000.0,0.00031,2]
[312913309,1706459447610,-700.0,0.00031,3]
[312913310,1706459447620,-4000.0,0.00031,2]
[312913311,1706459447629,-3795.25918728,0.00031125,2]
[312913312,1706459447638,-500.0,0.0003119,2]
[312913313,1706459447647,-152.8,0.00031233,2]
[312913314,1706459447656,-191.68,0.00031233,2]
[312913315,1706459447665,-1279.37,0.0003129,2]
[312913316,1706459447674,-4625.06645717,0.0003143,4]
[312913317,1706459447682,-169.09,0.00031507,2]
[312913318,1706459447691,-155.0,0.00031507,2]
[312913319,1706459447701,-1000.0,0.000316,2]
[312913320,1706459447709,-681.35,0.00031637,2]
[312913321,1706459447718,-3599.66772376,0.000317,2]
[312913323,1706459447726,-1279.37,0.00031723,2]
[312913324,1706459447735,-154.56927408,0.00031819,2]
[312913325,1706459447744,-320.35516016,0.00031948,3]
[312913326,1706459447753,-13108.26102004,0.00032,4]
[312913327,1706459447766,-1279.37,0.00032156,2]
[312913328,1706459447775,-1279.37,0.00032588,2]
[312913329,1706459447787,-377.25,0.00032688,2]
[312913330,1706459447798,-209.0,0.0003272,17]
[312913331,1706459447807,-3795.25918728,0.00032771,4]
[312913332,1706459447816,-174.56,0.00032877,2]
[312913333,1706459447825,-182.46,0.00032877,2]
[312913334,1706459447834,-155.0,0.00032877,2]
[312913335,1706459447843,-5477.0229646,0.00032994,2]
[312913336,1706459447853,-10260.97561552,0.00033,2]
[312913337,1706459447861,-157.91161995,0.00033013,2]
[312913338,1706459447872,-193996.13819036,0.00033016,2]
[312913339,1706459447881,-1279.37,0.00033021,2]
[312913340,1706459447890,-398.31,0.00033186,2]
[312913341,1706459447899,-208.0,0.00033187,2]
[312913342,1706459447908,-157.57078744,0.000334,4]
[312913343,1706459447917,-1279.37,0.00033453,2]
[312913344,1706459447925,-834.0,0.00033491,2]
[312913345,1706459447934,-948.0,0.00033491,2]
[312913346,1706459447943,-237.028,0.00033491,2]
[312913347,1706459447951,-653.748,0.00033491,2]
[312913348,1706459447960,-169.09,0.00033562,2]
[312913349,1706459447969,-246.865,0.00033616,2]
[312913350,1706459447978,-4207.486,0.00033639,2]
[312913351,1706459447987,-5366.189,0.00033639,2]
[312913352,1706459447996,-19753.0,0.00033639,2]
[312913353,1706459448005,-2268.0,0.00033639,2]
[312913354,1706459448014,-1000.0,0.0003383,7]
[312913355,1706459448023,-1279.37,0.00033886,2]
[312913356,1706459448033,-491.85985272,0.00034,4]
[312913357,1706459448043,-507.45614282,0.00034,4]
[312913358,1706459448053,-290.33371445,0.00034009,2]
[312913359,1706459448062,-155.76807187,0.00034106,4]
[312913360,1706459448071,-155.0,0.00034247,2]
[312913361,1706459448080,-1279.37,0.00034318,2]
[312913362,1706459448089,-232.0,0.0003441,2]
[312913363,1706459448099,-3795.25918728,0.00034416,6]
[312913364,1706459448108,-500.0,0.00034604,2]
[312913365,1706459448117,-3599.6,0.000347,2]
[312913366,1706459448126,-1279.37,0.00034751,2]
[312913367,1706459448136,-163.13,0.00034795,2]
[312913368,1706459448145,-150.0,0.00034795,2]
[312913369,1706459448154,-150.0,0.00034795,2]
[312913370,1706459448163,-150.0,0.00034795,2]
[312913371,1706459448172,-150.0,0.00034795,2]
[312913372,1706459448182,-150.0,0.00034795,2]
[312913373,1706459448191,-150.0,0.00034899,2]
[312913374,1706459448201,-150.0,0.00034899,2]
[312913375,1706459448210,-9114.1661631,0.000349,4]
[312913376,1706459448219,-377.25,0.00034952,2]
[312913377,1706459448229,-4236.4217994,0.00034976,2]
[312913378,1706459448238,-200.0,0.0003499,7]
[312913379,1706459448247,-200.0,0.0003499,7]
[312913380,1706459448256,-643752.90697754,0.00035,2]
[312913381,1706459448266,-451.751607,0.00035,4]
[312913382,1706459448275,-186.24664721,0.00035,4]
[312913383,1706459448284,-1276.60142688,0.00035,4]
[312913384,1706459448293,-1105.65914129,0.00035,14]
[312913385,1706459448302,-346.57172628,0.00035,7]
[312913386,1706459448311,-45446.64488679,0.00035,7]
[312913387,1706459448319,-320.66132997,0.00035,4]
[312913388,1706459448328,-301.050189,0.00035,4]
[312913389,1706459448337,-3000.0,0.00035,11]
[312913390,1706459448346,-1440.239086,0.00035,2]
[312913391,1706459448355,-192.31421206,0.00035,2]
[312913392,1706459448364,-5000.0,0.00035,3]
[312913393,1706459448373,-10455.10855037,0.00035,2]
[312913394,1706459448382,-10455.10855037,0.00035,2]
[312913395,1706459448391,-1000.0,0.00035,8]
[312913396,1706459448399,-150.0,0.00035009,2]
[312913397,1706459448409,-3000.0,0.0003501,11]
[312913398,1706459448418,-5515.736638,0.0003502,11]
[312913399,1706459448427,-16311.99567904,0.0003509,2]
[312913400,1706459448436,-1000.0,0.000351,8]
[312913401,1706459448445,-232.0,0.0003511,2]
[312913402,1706459448453,-1279.37,0.00035184,2]
[312913403,1706459448463,-209.0,0.000352,21]
[312913404,1706459448572,-1036.577829,0.000352,9]
[312913405,1706459448581,-4888.4389999,0.000355,10]
[312913406,1706459448590,-1707.06553319,0.000355,30]
[312913407,1706459448599,-2995.8206341,0.00035592,2]
[312913408,1706459448608,-1279.37,0.00035616,2]
[312913409,1706459448617,-174.56,0.00035616,2]
[312913410,1706459448627,-182.46,0.00035616,2]
[312913411,1706459448636,-169.09,0.00035616,2]
[312913412,1706459448645,-10872.27,0.00035616,2]
[312913413,1706459448654,-151.57,0.00035616,2]
[312913414,1706459448663,-150.0,0.00035616,2]
[312913415,1706459448672,-150.0,0.00035616,2]
[312913416,1706459448681,-150.0,0.00035616,2]
[312913417,1706459448690,-150.0,0.00035616,2]
[312913418,1706459448699,-150.0,0.00035616,2]
[312913419,1706459448708,-150.0,0.00035616,2]
[312913420,1706459448717,-150.0,0.00035616,2]
[312913421,1706459448726,-150.0,0.00035616,2]
[312913422,1706459448736,-150.0,0.00035616,2]
[312913423,1706459448745,-150.0,0.00035616,2]
[312913424,1706459448754,-150.0,0.00035616,2]
[312913425,1706459448767,-155.0,0.00035617,2]
[312913426,1706459448777,-2643.55,0.000357,7]
[312913427,1706459448786,-2606.41,0.000357,7]
[312913428,1706459448795,-167.9,0.000357,7]
[312913429,1706459448806,-1224.2,0.000357,7]
[312913430,1706459448815,-232.0,0.0003581,2]
[312913431,1706459448824,-1490.0,0.000359,12]
[312913432,1706459448833,-9476.87495758,0.0003591,5]
[312913433,1706459448843,-298.01245199,0.00036,4]
[312913434,1706459448852,-150.0,0.00036009,2]
[312913435,1706459448861,-3795.25918728,0.00036061,8]
[312913436,1706459448870,-500.0,0.000361,2]
[312913437,1706459448879,-352.09456631,0.00036301,30]
[312913438,1706459448888,-154.56927408,0.00036394,2]
[312913439,1706459448897,-320.35516016,0.00036472,9]
[312913440,1706459448906,-232.0,0.000365,2]
[312913441,1706459448915,-207.0,0.000365,2]
[312913442,1706459448924,-2643.55,0.000366,7]
[312913443,1706459448933,-2606.41,0.000366,7]
[312913444,1706459448942,-1224.2,0.000366,7]
[312913445,1706459448951,-14711.133,0.00036639,2]
[312913446,1706459448960,-168.22450656,0.0003689,7]
[312913447,1706459448969,-1000.0,0.00037,7]
[312913448,1706459448979,-1022.0,0.00037,5]
[312913449,1706459448988,-4000.0,0.00037,2]
[312913450,1706459448997,-150.0,0.00037009,2]
[312913451,1706459449006,-232.0,0.000372,2]
[312913452,1706459449015,-207.0,0.000372,2]
[312913453,1706459449025,-377.25,0.00037216,2]
[312913454,1706459449034,-150.0,0.0003726,2]
[312913455,1706459449043,-150.0,0.0003726,2]
[312913456,1706459449052,-150.0,0.0003726,2]
[312913457,1706459449062,-500.0,0.00037596,2]
[312913458,1706459449071,-2643.55,0.000376,7]
[312913459,1706459449079,-1742.4963639,0.000376,2]
[312913460,1706459449088,-8248.2668689,0.000376,2]
[312913461,1706459449098,-332.47862362,0.000376,2]
[312913462,1706459449107,-209.0,0.0003768,25]
[312913463,1706459449117,-150.0,0.00037699,2]
[312913464,1706459449126,-150.0,0.00037699,2]
[312913465,1706459449135,-117030.50841582,0.000377,2]
[312913466,1706459449144,-2606.41,0.000377,7]
[312913467,1706459449153,-1224.2,0.000377,7]
[312913468,1706459449163,-153.51,0.000377,3]
[312913469,1706459449172,-153.51,0.000377,3]
[312913470,1706459449182,-774.62,0.000377,3]
[312913471,1706459449191,-774.62,0.000377,3]
[312913472,1706459449203,-774.62,0.000377,3]
[312913473,1706459449212,-774.62,0.000377,3]
[312913474,1706459449224,-774.62,0.000377,3]
[312913475,1706459449234,-774.62,0.000377,3]
[312913476,1706459449243,-774.62,0.000377,3]
[312913477,1706459449252,-774.62,0.000377,3]
[312913478,1706459449262,-774.62,0.000377,3]
[312913479,1706459449271,-774.62,0.000377,3]
[312913480,1706459449281,-774.62,0.000377,3]
[312913481,1706459449290,-774.62,0.000377,3]
[312913482,1706459449299,-774.62,0.000377,3]
[312913483,1706459449310,-774.62,0.000377,3]
[312913484,1706459449320,-774.62,0.000377,3]
[312913485,1706459449330,-774.62,0.000377,3]
[312913486,1706459449341,-774.62,0.000377,3]
[312913487,1706459449352,-774.62,0.000377,3]
[312913488,1706459449361,-774.62,0.000377,3]
[312913489,1706459449370,-774.62,0.000377,3]
[312913490,1706459449379,-3795.25918728,0.00037706,11]
[312913491,1706459449388,-2660.06749688,0.000378,2]
[312913492,1706459449397,-150.0,0.00037808,2]
[312913493,1706459449406,-150.0,0.00037808,2]
[312913494,1706459449415,-150.0,0.00037808,2]
[312913495,1706459449424,-150.0,0.00037808,2]
[312913496,1706459449434,-150.0,0.00037808,2]
[312913497,1706459449443,-150.0,0.00037808,2]
[312913498,1706459449452,-150.0,0.00037808,2]
[312913499,1706459449460,-150.0,0.00037808,2]
[312913500,1706459449469,-150.0,0.00037808,2]
[312913501,1706459449479,-1755.2194688,0.00037874,2]
[312913502,1706459449488,-19164.75038382,0.00037893,4]
[312913503,1706459449504,-72867.95281422,0.00037893,4]
[312913504,1706459449525,-8833.41799333,0.00037895,4]
[312913505,1706459449535,-157.91161995,0.00037897,2]
[312913506,1706459449544,-280.50247646,0.00037898,4]
[312913507,1706459449553,-163.16886553,0.00037898,4]
[312913508,1706459449562,-155.53888609,0.00037899,4]
[312913509,1706459449572,-314.52978724,0.000379,14]
[312913510,1706459449581,-232.0,0.000379,2]
[312913511,1706459449590,-207.0,0.000379,2]
[312913512,1706459449599,-1000.0,0.000379,25]
[312913513,1706459449608,-200.0,0.000379,2]
[312913514,1706459449618,-663899.163697,0.000379,3]
[312913515,1706459449628,-521.5421775,0.000379,2]
[312913516,1706459449637,-250.09996224,0.00038,3]
[312913517,1706459449646,-7114.73163924,0.00038,7]
[312913518,1706459449657,-159.90714037,0.00038,4]
[312913519,1706459449666,-1000.0,0.00038,15]
[312913520,1706459449676,-150.0,0.00038009,2]
[312913521,1706459449684,-150.0,0.00038082,2]
[312913522,1706459449694,-851.25,0.00038082,2]
[312913523,1706459449703,-213.32531584,0.0003833,10]
[312913524,1706459449712,-600.0,0.00038356,2]
[312913525,1706459449721,-600.0,0.00038356,2]
[312913526,1706459449730,-600.0,0.00038356,2]
[312913527,1706459449739,-600.0,0.00038356,2]
[312913528,1706459449748,-639.85285705,0.00038356,2]
[312913529,1706459449757,-2643.55,0.000385,7]
[312913530,1706459449767,-157.91161995,0.00038567,2]
[312913531,1706459449776,-150.0,0.00038569,2]
[312913532,1706459449786,-150.0,0.00038569,2]
[312913533,1706459449796,-200000.0,0.0003857,20]
[312913534,1706459449807,-1224.2,0.000387,7]
[312913535,1706459449818,-3599.6,0.000387,4]
[312913536,1706459449829,-378.89444523,0.00038865,2]
[312913537,1706459449840,-749.67689011,0.00038865,2]
[312913538,1706459449850,-312.17671248,0.00038866,2]
[312913539,1706459449861,-155.16042181,0.0003888,2]
[312913540,1706459449870,-155.1604218,0.0003888,2]
[312913541,1706459449880,-155.1604218,0.0003888,2]
[312913542,1706459449889,-155.1604218,0.0003888,2]
[312913543,1706459449898,-155.1604218,0.0003888,2]
[312913544,1706459449908,-2606.41,0.000389,7]
[312913545,1706459449917,-521.5421775,0.000389,2]
[312913546,1706459449927,-647.18,0.00038904,2]
[312913547,1706459449937,-3610.83237743,0.00038967,4]
[312913548,1706459449947,-820.46498782,0.00038967,4]
[312913549,1706459449958,-449.2285556,0.00038967,4]
[312913550,1706459449968,-156.16994493,0.00038967,4]
[312913551,1706459449977,-155.66187815,0.00038967,4]
[312913552,1706459449986,-160.77929687,0.00038967,4]
[312913553,1706459449996,-144234.24243355,0.0003897,2]
[312913554,1706459450006,-107972.2327844,0.0003897,2]
[312913555,1706459450016,-1574.3672473,0.00039,3]
[312913556,1706459450026,-283.1063896,0.00039,4]
[312913557,1706459450036,-956.35907899,0.00039,5]
[312913558,1706459450046,-309.24323904,0.00039,5]
[312913559,1706459450055,-981.18114458,0.00039,4]
[312913560,1706459450065,-625.23833142,0.00039,4]
[312913561,1706459450074,-296.91918979,0.00039,40]
[312913562,1706459450083,-1000.0,0.00039,30]
[312913563,1706459450092,-3000.0,0.00039,24]
[312913564,1706459450102,-3000.0,0.0003901,24]
[312913565,1706459450111,-5515.736638,0.0003902,24]
[312913566,1706459450120,-300.0,0.000393,7]
[312913567,1706459450129,-150.0,0.000393,7]
[312913568,1706459450139,-3795.25918728,0.00039351,13]
[312913569,1706459450148,-362.51,0.00039397,2]
[312913570,1706459450157,-377.25,0.0003948,2]
[312913571,1706459450166,-500.0,0.000396,7]
[312913572,1706459450176,-2643.55,0.000396,7]
[312913573,1706459450185,-2606.41,0.000398,7]
[312913574,1706459450195,-350.2718683,0.000399,4]
[312913575,1706459450204,-1224.2,0.000399,7]
[312913576,1706459450315,-521.5421775,0.000399,2]
[312913577,1706459450326,-3214.52,0.0004,10]
[312913578,1706459450335,-325.42730519,0.0004,2]
[312913579,1706459450344,-235.00312617,0.0004,4]
[312913580,1706459450354,-2000.0,0.0004,3]
[312913581,1706459450363,-181.30912496,0.0004,2]
[312913582,1706459450372,-20141.953934,0.0004,9]
[312913583,1706459450382,-32342.0,0.0004,4]
[312913584,1706459450391,-1086.36976472,0.0004,4]
[312913585,1706459450401,-2723.2457715,0.0004,4]
[312913586,1706459450410,-2287.62267288,0.0004,4]
[312913587,1706459450419,-286.43434211,0.0004,4]
[312913588,1706459450428,-2004.4541,0.0004,3]
[312913589,1706459450439,-2000.0,0.0004,3]
[312913590,1706459450448,-49062.77972159,0.0004,15]
[312913591,1706459450458,-537.79140771,0.0004,30]
[312913592,1706459450467,-1000.0,0.0004,30]
[312913593,1706459450477,-962.61402678,0.0004,2]
[312913594,1706459450487,-502.05868393,0.0004,30]
[312913595,1706459450496,-1000.0,0.0004,60]
[312913596,1706459450505,-1603.01953873,0.0004,7]
[312913597,1706459450514,-331.45480754,0.0004,12]
[312913598,1706459450523,-154.081787,0.0004,15]
[312913599,1706459450535,-195.901103,0.0004001,15]
[312913600,1706459450544,-1000.0,0.000401,30]
[312913601,1706459450553,-209.0,0.0004016,29]
[312913602,1706459450562,-205.302955,0.00040627,2]
[312913603,1706459450571,-268.687737,0.00040627,2]
[312913604,1706459450581,-272.765271,0.00040627,2]
[312913605,1706459450590,-185.730085,0.00040627,2]
[312913606,1706459450599,-251.484519,0.00040627,2]
[312913607,1706459450608,-218.492469,0.00040634,2]
[312913608,1706459450617,-217.712511,0.00040634,2]
[312913609,1706459450627,-217.466618,0.00040634,2]
[312913610,1706459450637,-217.466617,0.00040634,2]
[312913611,1706459450646,-712.72994761,0.00040843,13]
[312913612,1706459450656,-772.07244198,0.00040875,20]
[312913613,1706459450665,-167.9,0.000409,7]
[312913614,1706459450675,-521.5421775,0.000409,2]
[312913615,1706459450684,-154.56927408,0.00040968,10]
[312913616,1706459450693,-223.1748298,0.00040975,30]
[312913617,1706459450702,-772.07244192,0.00040984,20]
[312913618,1706459450712,-3857.43,0.0004099,10]
[312913619,1706459450721,-320.35516016,0.00040996,15]
[312913620,1706459450731,-3795.25918728,0.00040996,15]
[312913621,1706459450740,-1227.94971024,0.00041,2]
[312913622,1706459450750,-248.24687502,0.00041,5]
[312913623,1706459450761,-22214.0,0.00041,2]
[312913624,1706459450774,-3468.78542768,0.00041,4]
[312913625,1706459450785,-2643.55,0.00041,7]
[312913626,1706459450794,-2606.41,0.00041,7]
[312913627,1706459450803,-1000.0,0.00041,120]
[312913628,1706459450813,-1224.2,0.00041,7]
[312913629,1706459450822,-281817.95938985,0.00041,5]
[312913630,1706459450832,-772.07244192,0.00041092,21]
[312913631,1706459450842,-157.91161995,0.00041093,2]
[312913632,1706459450851,-150.0,0.00041095,3]
[312913633,1706459450861,-150.0,0.00041095,3]
[312913634,1706459450870,-151.0,0.00041096,14]
[312913635,1706459450879,-151.0,0.00041096,14]
[312913636,1706459450888,-151.0,0.00041096,14]
[312913637,1706459450897,-151.0,0.00041096,14]
[312913638,1706459450906,-151.0,0.00041096,14]
[312913639,1706459450916,-151.0,0.00041096,14]
[312913640,1706459450926,-151.0,0.00041096,14]
[312913641,1706459450936,-151.0,0.00041096,14]
[312913642,1706459450945,-151.0,0.00041096,14]
[312913643,1706459450955,-151.0,0.00041096,14]
[312913644,1706459450964,-151.0,0.00041096,14]
[312913645,1706459450974,-151.0,0.00041096,14]
[312913646,1706459450983,-173.637147,0.00041096,14]
[312913647,1706459450993,-151.0,0.00041096,14]
[312913648,1706459451003,-151.0,0.00041096,14]
[312913649,1706459451012,-151.0,0.00041096,14]
[312913650,1706459451021,-151.0,0.00041096,14]
[312913651,1706459451030,-151.0,0.00041096,14]
[312913652,1706459451040,-151.0,0.00041096,14]
[312913653,1706459451049,-151.0,0.00041096,14]
[312913654,1706459451058,-185.239339,0.00041096,14]
[312913655,1706459451067,-185.239339,0.00041096,14]
[312913656,1706459451076,-185.239339,0.00041096,14]
[312913657,1706459451085,-185.239339,0.00041096,14]
[312913658,1706459451095,-185.239339,0.00041096,14]
[312913659,1706459451104,-185.239339,0.00041096,14]
[312913660,1706459451113,-185.239339,0.00041096,14]
[312913661,1706459451122,-185.239339,0.00041096,14]
[312913662,1706459451131,-185.239339,0.00041096,14]
[312913663,1706459451140,-185.239339,0.00041096,14]
[312913664,1706459451150,-185.239339,0.00041096,14]
[312913665,1706459451159,-185.239339,0.00041096,14]
[312913666,1706459451168,-185.239339,0.00041096,14]
[312913667,1706459451177,-185.239339,0.00041096,14]
[312913668,1706459451186,-151.0,0.00041096,14]
[312913669,1706459451196,-151.0,0.00041096,14]
[312913670,1706459451205,-151.0,0.00041096,14]
[312913671,1706459451214,-151.0,0.00041096,14]
[312913672,1706459451224,-154.428116,0.00041096,14]
[312913673,1706459451234,-151.0,0.00041096,14]
[312913674,1706459451243,-151.0,0.00041096,14]
[312913675,1706459451252,-151.0,0.00041096,14]
[312913676,1706459451262,-151.0,0.00041096,14]
[312913677,1706459451271,-151.0,0.00041096,14]
[312913678,1706459451280,-151.0,0.00041096,14]
[312913679,1706459451290,-151.0,0.00041096,14]
[312913680,1706459451299,-151.0,0.00041096,14]
[312913681,1706459451308,-165.86135,0.00041096,14]
[312913682,1706459451317,-165.86135,0.00041096,14]
[312913683,1706459451326,-165.86135,0.00041096,14]
[312913684,1706459451336,-165.86135,0.00041096,14]
[312913685,1706459451345,-165.86135,0.00041096,14]
[312913686,1706459451354,-165.86135,0.00041096,14]
[312913687,1706459451363,-165.86135,0.00041096,14]
[312913688,1706459451372,-165.86135,0.00041096,14]
[312913689,1706459451381,-165.86135,0.00041096,14]
[312913690,1706459451390,-165.86135,0.00041096,14]
[312913691,1706459451399,-165.86135,0.00041096,14]
[312913692,1706459451409,-165.86135,0.00041096,14]
[312913693,1706459451418,-165.86135,0.00041096,14]
[312913694,1706459451426,-165.86135,0.00041096,14]
[312913695,1706459451435,-165.86135,0.00041096,14]
[312913696,1706459451445,-165.86135,0.00041096,14]
[312913697,1706459451454,-151.0,0.00041096,14]
[312913698,1706459451463,-151.480742,0.00041096,14]
[312913699,1706459451472,-250.0,0.00041096,14]
[312913700,1706459451481,-250.0,0.00041096,14]
[312913701,1706459451490,-250.0,0.00041096,14]
[312913702,1706459451499,-250.0,0.00041096,14]
[312913703,1706459451509,-250.0,0.00041096,14]
[312913704,1706459451517,-250.0,0.00041096,14]
[312913705,1706459451527,-250.0,0.00041096,14]
[312913706,1706459451536,-250.0,0.00041096,14]
[312913707,1706459451546,-250.0,0.00041096,14]
[312913708,1706459451555,-250.0,0.00041096,14]
[312913709,1706459451564,-250.0,0.00041096,14]
[312913710,1706459451573,-250.0,0.00041096,14]
[312913711,1706459451582,-250.0,0.00041096,14]
[312913712,1706459451591,-250.0,0.00041096,14]
[312913713,1706459451600,-250.0,0.00041096,14]
[312913714,1706459451609,-250.0,0.00041096,14]
[312913715,1706459451618,-151.0,0.00041096,14]
[312913716,1706459451628,-151.0,0.00041096,14]
[312913717,1706459451637,-151.0,0.00041096,14]
[312913718,1706459451647,-151.0,0.00041096,14]
[312913719,1706459451656,-151.0,0.00041096,14]
[312913720,1706459451665,-151.0,0.00041096,14]
[312913721,1706459451674,-157.238447,0.00041096,14]
[312913722,1706459451683,-151.0,0.00041096,14]
[312913723,1706459451692,-151.0,0.00041096,14]
[312913724,1706459451702,-151.0,0.00041096,14]
[312913725,1706459451711,-151.0,0.00041096,14]
[312913726,1706459451720,-151.0,0.00041096,14]
[312913727,1706459451729,-151.0,0.00041096,14]
[312913728,1706459451738,-151.0,0.00041096,14]
[312913729,1706459451747,-151.0,0.00041096,14]
[312913730,1706459451757,-151.0,0.00041096,14]
[312913731,1706459451767,-151.0,0.00041096,14]
[312913732,1706459451775,-151.0,0.00041096,14]
[312913733,1706459451785,-151.0,0.00041096,14]
[312913734,1706459451794,-151.0,0.00041096,14]
[312913735,1706459451805,-151.0,0.00041096,14]
[312913736,1706459451905,-151.0,0.00041096,14]
[312913737,1706459451914,-246.178951,0.00041096,14]
[312913738,1706459451923,-151.0,0.00041096,14]
[312913739,1706459451933,-151.0,0.00041096,14]
[312913740,1706459451942,-151.0,0.00041096,14]
[312913741,1706459451951,-151.0,0.00041096,14]
[312913742,1706459451960,-152.593497,0.00041096,14]
[312913743,1706459451969,-1189.254783,0.00041096,14]
[312913744,1706459451978,-1189.254783,0.00041096,14]
[312913745,1706459451987,-1189.254783,0.00041096,14]
[312913746,1706459451996,-1189.254783,0.00041096,14]
[312913747,1706459452005,-1189.254783,0.00041096,14]
[312913748,1706459452014,-1189.254783,0.00041096,14]
[312913749,1706459452023,-1189.254783,0.00041096,14]
[312913750,1706459452032,-1189.254783,0.00041096,14]
[312913751,1706459452042,-1189.254783,0.00041096,14]
[312913752,1706459452051,-1189.254783,0.00041096,14]
[312913753,1706459452060,-1189.254783,0.00041096,14]
[312913754,1706459452070,-1189.254783,0.00041096,14]
[312913755,1706459452079,-1189.254783,0.00041096,14]
[312913756,1706459452088,-1189.254783,0.00041096,14]
[312913757,1706459452097,-1189.254783,0.00041096,14]
[312913758,1706459452106,-1189.254783,0.00041096,14]
[312913759,1706459452116,-151.0,0.00041096,7]
[312913760,1706459452125,-151.0,0.00041096,7]
[312913761,1706459452135,-151.0,0.00041096,7]
[312913762,1706459452144,-151.0,0.00041096,7]
[312913763,1706459452153,-151.0,0.00041096,7]
[312913764,1706459452162,-151.0,0.00041096,7]
[312913765,1706459452171,-151.0,0.00041096,7]
[312913766,1706459452180,-151.0,0.00041096,7]
[312913767,1706459452189,-209.318863,0.00041096,14]
[312913768,1706459452199,-151.0,0.00041096,7]
[312913769,1706459452208,-151.0,0.00041096,7]
[312913770,1706459452216,-151.0,0.00041096,7]
[312913771,1706459452225,-151.0,0.00041096,7]
[312913772,1706459452234,-151.0,0.00041096,7]
[312913773,1706459452244,-151.0,0.00041096,7]
[312913774,1706459452252,-151.0,0.00041096,7]
[312913775,1706459452261,-151.0,0.00041096,7]
[312913776,1706459452270,-188.0,0.00041096,7]
[312913777,1706459452280,-310.146971,0.00041096,14]
[312913778,1706459452290,-310.146971,0.00041096,14]
[312913779,1706459452299,-310.146971,0.00041096,14]
[312913780,1706459452308,-310.146971,0.00041096,14]
[312913781,1706459452317,-310.146971,0.00041096,14]
[312913782,1706459452326,-310.146971,0.00041096,14]
[312913783,1706459452335,-310.146971,0.00041096,14]
[312913784,1706459452344,-310.146971,0.00041096,14]
[312913785,1706459452353,-310.146971,0.00041096,14]
[312913786,1706459452362,-310.146971,0.00041096,14]
[312913787,1706459452371,-310.146971,0.00041096,14]